{"text_format":"3","workbook":"xlsx","n_sheets":1,"sheets":["Bloeddruk & glucose"],"not_rendered":{"defined_names":9},"read":"whole","date_system":"1900"}

{"sheet":"Bloeddruk & glucose","index":0,"n_rows":13,"n_cols":11,"rows_kept":13,"merged":[[0,1,4,3],[0,4,0,9],[1,4,1,6],[1,7,1,9]]}
[null,"Bloeddruk-en glucosetracker",null,null,"Pas in de cellen E2 tot en met J5 hieronder de schaalwaarden aan."]
[{"$nulls":4},"BLOEDDRUK",null,null,"GLUCOSESCHAAL"]
[{"$nulls":4},120,"SYSTOLISCH",140,70,100,150]
[{"$nulls":4},80,"DIASTOLISCH",90,"LAAG","NORMAAL","HOOG"]
[{"$nulls":4},"DOELDRUK",null,"ARTS WAARSCHUWEN"]
[null,"Datum","Tijd","Gebeurtenis","Systolisch","Diastolisch","Hartslag","Glucose","Gehalte","Status","Notities"]
[null,{"$f":"TODAY()","v":"2022-08-03"},"06:00:00","Opstaan",129,79,72,55,{"$f":"BloodPressureAndGlucose[[#This Row],[Glucose]]","v":55},{"$f":"IFERROR(IF(BloodPressureAndGlucose[[#This Row],[Gehalte]]=0,\"\",IF(BloodPressureAndGlucose[[#This Row],[Gehalte]]<=GLaag,\"Laag\",IF(AND(BloodPressureAndGlucose[[#This Row],[Gehalte]]>GLaag,BloodPressureAndGlucose[[#This Row],[Gehalte]]<GHoog),\"Normaal\",\"Hoog\"))), \"\")","v":"Laag"}]
[null,{"$f":"TODAY()","v":"2022-08-03"},"07:00:00","Voor maaltijd",120,80,74,70,{"$f":"BloodPressureAndGlucose[[#This Row],[Glucose]]","v":70},{"$f":"IFERROR(IF(BloodPressureAndGlucose[[#This Row],[Gehalte]]=0,\"\",IF(BloodPressureAndGlucose[[#This Row],[Gehalte]]<=GLaag,\"Laag\",IF(AND(BloodPressureAndGlucose[[#This Row],[Gehalte]]>GLaag,BloodPressureAndGlucose[[#This Row],[Gehalte]]<GHoog),\"Normaal\",\"Hoog\"))), \"\")","v":"Laag"}]
[null,"2022-08-03","09:00:00","Na maaltijd",133,80,75,75,{"$f":"BloodPressureAndGlucose[[#This Row],[Glucose]]","v":75},{"$f":"IFERROR(IF(BloodPressureAndGlucose[[#This Row],[Gehalte]]=0,\"\",IF(BloodPressureAndGlucose[[#This Row],[Gehalte]]<=GLaag,\"Laag\",IF(AND(BloodPressureAndGlucose[[#This Row],[Gehalte]]>GLaag,BloodPressureAndGlucose[[#This Row],[Gehalte]]<GHoog),\"Normaal\",\"Hoog\"))), \"\")","v":"Normaal"}]
[null,"2022-08-03","10:00:00","Alleen bloeddruk",143,91,75,190,{"$f":"BloodPressureAndGlucose[[#This Row],[Glucose]]","v":190},{"$f":"IFERROR(IF(BloodPressureAndGlucose[[#This Row],[Gehalte]]=0,\"\",IF(BloodPressureAndGlucose[[#This Row],[Gehalte]]<=GLaag,\"Laag\",IF(AND(BloodPressureAndGlucose[[#This Row],[Gehalte]]>GLaag,BloodPressureAndGlucose[[#This Row],[Gehalte]]<GHoog),\"Normaal\",\"Hoog\"))), \"\")","v":"Hoog"}]
[null,"2022-08-03","12:00:00","Voor maaltijd",141,84,70,140,{"$f":"BloodPressureAndGlucose[[#This Row],[Glucose]]","v":140},{"$f":"IFERROR(IF(BloodPressureAndGlucose[[#This Row],[Gehalte]]=0,\"\",IF(BloodPressureAndGlucose[[#This Row],[Gehalte]]<=GLaag,\"Laag\",IF(AND(BloodPressureAndGlucose[[#This Row],[Gehalte]]>GLaag,BloodPressureAndGlucose[[#This Row],[Gehalte]]<GHoog),\"Normaal\",\"Hoog\"))), \"\")","v":"Normaal"}]
[null,{"$f":"TODAY()","v":"2022-08-03"},"15:00:00","Na maaltijd",132,80,68,90,{"$f":"BloodPressureAndGlucose[[#This Row],[Glucose]]","v":90},{"$f":"IFERROR(IF(BloodPressureAndGlucose[[#This Row],[Gehalte]]=0,\"\",IF(BloodPressureAndGlucose[[#This Row],[Gehalte]]<=GLaag,\"Laag\",IF(AND(BloodPressureAndGlucose[[#This Row],[Gehalte]]>GLaag,BloodPressureAndGlucose[[#This Row],[Gehalte]]<GHoog),\"Normaal\",\"Hoog\"))), \"\")","v":"Normaal"},"Bloeddrukmedicatie bij maaltijd ingenomen"]
[null,"Gemiddelden",null,null,{"$f":"SUBTOTAL(101,BloodPressureAndGlucose[Systolisch])","v":133},{"$f":"SUBTOTAL(101,BloodPressureAndGlucose[Diastolisch])","v":{"v":82.33333333333333,"d":"82"}},{"$f":"SUBTOTAL(101,BloodPressureAndGlucose[Hartslag])","v":{"v":72.33333333333333,"d":"72"}},{"$f":"SUBTOTAL(101,BloodPressureAndGlucose[Glucose])","v":{"v":103.33333333333333,"d":"103"}}]